[Event "*** Titled Tuesday 3|2 Blitz"]
[Site "Chess.com"]
[Date "2015.09.01"]
[Round "8"]
[White "PawelCzarnota"]
[Black "Aygehovit1992"]
[Result "1-0"]
[WhiteElo "2441"]
[BlackElo "2334"]
[TimeControl "180+2"]
[EndTime "12:37:27 PDT"]
[Termination "PawelCzarnota won by resignation"]

1. e4 {[%clk 0:03:01.9]} 1... c5 {[%clk 0:02:59.5]} 2. Nf3 {[%clk 0:03:03]} 2...
e6 {[%clk 0:03:01]} 3. d4 {[%clk 0:03:04.3]} 3... cxd4 {[%clk 0:03:02.3]} 4.
Nxd4 {[%clk 0:03:06.2]} 4... Nc6 {[%clk 0:03:03.7]} 5. Nc3 {[%clk 0:03:06.6]}
5... Qc7 {[%clk 0:03:00.4]} 6. Be2 {[%clk 0:03:06.6]} 6... Nf6 {[%clk
0:02:58.5]} 7. O-O {[%clk 0:03:07.4]} 7... Be7 {[%clk 0:02:55.9]} 8. Be3 {[%clk
0:03:06.7]} 8... a6 {[%clk 0:02:53.3]} 9. f4 {[%clk 0:03:06.9]} 9... d6 {[%clk
0:02:43.4]} 10. a4 {[%clk 0:03:05.8]} 10... O-O {[%clk 0:02:43.8]} 11. Kh1
{[%clk 0:03:07.1]} 11... Bd7 {[%clk 0:02:31.4]} 12. Bd3 {[%clk 0:03:07.6]} 12...
Nxd4 {[%clk 0:02:32.4]} 13. Bxd4 {[%clk 0:03:08.8]} 13... e5 {[%clk 0:02:31]}
14. Be3 {[%clk 0:03:08.6]} 14... Bc6 {[%clk 0:02:30.2]} 15. Qf3 {[%clk
0:03:07.4]} 15... Rfe8 {[%clk 0:02:24.4]} 16. fxe5 {[%clk 0:02:59.6]} 16... dxe5
{[%clk 0:02:25.3]} 17. Nd5 {[%clk 0:03:00.4]} 17... Bxd5 {[%clk 0:02:26.1]} 18.
exd5 {[%clk 0:03:01.7]} 18... Bc5 {[%clk 0:02:26.9]} 19. Bxc5 {[%clk 0:02:11.9]}
19... Qxc5 {[%clk 0:02:27.3]} 20. Qg3 {[%clk 0:02:12.3]} 20... e4 {[%clk
0:00:56.2]} 21. Be2 {[%clk 0:02:11.6]} 21... Nxd5 {[%clk 0:00:53.4]} 22. Rf5
{[%clk 0:02:12.2]} 22... Rad8 {[%clk 0:00:52.3]} 23. Raf1 {[%clk 0:02:10.3]}
23... Re7 {[%clk 0:00:35.2]} 24. b3 {[%clk 0:02:04.7]} 24... g6 {[%clk
0:00:32.8]} 25. Bc4 {[%clk 0:02:04.6]} 25... Qc6 {[%clk 0:00:28.3]} 26. Qg5
{[%clk 0:01:57.3]} 26... h6 {[%clk 0:00:09.4]} 27. Qg3 {[%clk 0:01:30.5]} 27...
e3 {[%clk 0:00:10.1]} 28. Re5 {[%clk 0:01:24.4]} 28... Rxe5 {[%clk 0:00:08.7]}
29. Qxe5 {[%clk 0:01:26.3]} 29... Qe6 {[%clk 0:00:08.5]} 30. Qxe6 {[%clk
0:01:22.7]} 30... fxe6 {[%clk 0:00:09.7]} 31. Re1 {[%clk 0:01:24.3]} 31... Nc3
{[%clk 0:00:09.6]} 32. Kg1 {[%clk 0:01:15.8]} 32... Rd1 {[%clk 0:00:07.3]} 33.
Rxd1 {[%clk 0:01:10.4]} 33... Nxd1 {[%clk 0:00:08.5]} 34. Bxe6+ {[%clk 0:01:12]}
34... Kg7 {[%clk 0:00:09.2]} 35. Kf1 {[%clk 0:01:13.6]} 35... Nc3 {[%clk
0:00:09.5]} 36. Bc8 {[%clk 0:01:13.7]} 36... b5 {[%clk 0:00:09.2]} 37. a5 {[%clk
0:01:11.4]} 37... Kf6 {[%clk 0:00:04.9]} 38. Bxa6 {[%clk 0:01:12.3]} 38... Ke5
{[%clk 0:00:06.3]} 39. Bc8 {[%clk 0:01:09.1]} 39... Kd6 {[%clk 0:00:07.3]} 40.
a6 {[%clk 0:01:10.5]} 40... Nd5 {[%clk 0:00:07.2]} 41. a7 {[%clk 0:01:09.6]}
41... Nb6 {[%clk 0:00:07.4]} 42. Bb7 {[%clk 0:01:10.7]} 1-0

[Event "*** Titled Tuesday 3|2 Blitz"]
[Site "Chess.com"]
[Date "2015.09.01"]
[Round "8"]
[White "Tirantes"]
[Black "xdb"]
[Result "1-0"]
[WhiteElo "2239"]
[BlackElo "2155"]
[TimeControl "180+2"]
[EndTime "12:37:42 PDT"]
[Termination "Tirantes won by resignation"]

1. c4 {[%clk 0:03:01.9]} 1... e6 {[%clk 0:02:57.2]} 2. Nf3 {[%clk 0:02:55.3]}
2... d5 {[%clk 0:02:58]} 3. d4 {[%clk 0:02:56]} 3... Nf6 {[%clk 0:02:56.3]} 4.
Nc3 {[%clk 0:02:56.1]} 4... Be7 {[%clk 0:02:57]} 5. Bf4 {[%clk 0:02:56]} 5...
O-O {[%clk 0:02:54.6]} 6. e3 {[%clk 0:02:56.4]} 6... Nbd7 {[%clk 0:02:51.6]} 7.
Qc2 {[%clk 0:02:47.8]} 7... c5 {[%clk 0:02:52]} 8. Rd1 {[%clk 0:02:46.9]} 8...
cxd4 {[%clk 0:02:51.1]} 9. Rxd4 {[%clk 0:02:45.2]} 9... Qa5 {[%clk 0:02:51.4]}
10. a3 {[%clk 0:01:55]} 10... dxc4 {[%clk 0:02:42.5]} 11. Rxc4 {[%clk
0:01:51.4]} 11... Nb6 {[%clk 0:02:25.6]} 12. Rd4 {[%clk 0:01:39.3]} 12... Nfd5
{[%clk 0:02:18.3]} 13. Bd3 {[%clk 0:01:28.1]} 13... h6 {[%clk 0:02:15.6]} 14.
O-O {[%clk 0:01:20.8]} 14... Bf6 {[%clk 0:01:53]} 15. Nxd5 {[%clk 0:01:12.3]}
15... Nxd5 {[%clk 0:01:44.9]} 16. Ra4 {[%clk 0:01:10.5]} 16... Qb6 {[%clk
0:01:35.6]} 17. Be5 {[%clk 0:01:00.5]} 17... Bd7 {[%clk 0:01:21.3]} 18. Rd4
{[%clk 0:00:51.7]} 18... Rac8 {[%clk 0:01:19.4]} 19. Qd2 {[%clk 0:00:49.5]}
19... Bxe5 {[%clk 0:01:06.9]} 20. Nxe5 {[%clk 0:00:49.2]} 20... Bb5 {[%clk
0:01:07.6]} 21. Rd1 {[%clk 0:00:44.7]} 21... Bxd3 {[%clk 0:01:05.6]} 22. Rxd3
{[%clk 0:00:39.4]} 22... Qb5 {[%clk 0:00:55.6]} 23. Nf3 {[%clk 0:00:36.1]} 23...
Qa4 {[%clk 0:00:46.8]} 24. Nd4 {[%clk 0:00:33.6]} 24... Nf6 {[%clk 0:00:42.7]}
25. h3 {[%clk 0:00:31.3]} 25... Ne4 {[%clk 0:00:18.2]} 26. Qe2 {[%clk
0:00:31.7]} 26... e5 {[%clk 0:00:16.1]} 27. Nf5 {[%clk 0:00:30.7]} 27... Rc2
{[%clk 0:00:16.4]} 28. Qg4 {[%clk 0:00:27.9]} 28... g6 {[%clk 0:00:14.1]} 29.
Nxh6+ {[%clk 0:00:21.5]} 29... Kh7 {[%clk 0:00:13.8]} 30. Qh4 {[%clk 0:00:17.2]}
30... Kg7 {[%clk 0:00:13.4]} 31. f3 {[%clk 0:00:13.8]} 31... Rc4 {[%clk
0:00:10.3]} 32. fxe4 {[%clk 0:00:10.2]} 32... Rxe4 {[%clk 0:00:08.9]} 33. Qg5
{[%clk 0:00:11.1]} 33... f5 {[%clk 0:00:06.3]} 34. Rd7+ {[%clk 0:00:10.6]} 1-0

[Event "*** Titled Tuesday 3|2 Blitz"]
[Site "Chess.com"]
[Date "2015.09.01"]
[Round "8"]
[White "Hafez_Bakr"]
[Black "Dale"]
[Result "0-1"]
[WhiteElo "1720"]
[BlackElo "1931"]
[TimeControl "180+2"]
[EndTime "12:37:58 PDT"]
[Termination "Dale won by resignation"]

1. e4 {[%clk 0:03:01.9]} 1... d5 {[%clk 0:02:58.4]} 2. exd5 {[%clk 0:03:01.2]}
2... Nf6 {[%clk 0:02:59.1]} 3. d4 {[%clk 0:03:00.6]} 3... Qxd5 {[%clk
0:02:59.6]} 4. Nc3 {[%clk 0:03:00]} 4... Qd7 {[%clk 0:02:57.5]} 5. Nf3 {[%clk
0:03:01.5]} 5... e6 {[%clk 0:02:55.5]} 6. Be2 {[%clk 0:03:01.6]} 6... Be7 {[%clk
0:02:53.8]} 7. O-O {[%clk 0:03:00.9]} 7... O-O {[%clk 0:02:54.5]} 8. Be3 {[%clk
0:02:59.3]} 8... a6 {[%clk 0:02:53.8]} 9. h3 {[%clk 0:02:59.8]} 9... b5 {[%clk
0:02:54.6]} 10. Ne5 {[%clk 0:03:00.5]} 10... Qd8 {[%clk 0:02:52.6]} 11. Bf3
{[%clk 0:03:00.7]} 11... Nd5 {[%clk 0:02:49.4]} 12. Nxd5 {[%clk 0:02:58.2]}
12... exd5 {[%clk 0:02:49.5]} 13. c3 {[%clk 0:02:56.1]} 13... Be6 {[%clk
0:02:37.5]} 14. Qd3 {[%clk 0:02:53.3]} 14... f6 {[%clk 0:02:25.5]} 15. Ng4
{[%clk 0:02:44.7]} 15... Bd6 {[%clk 0:02:23.6]} 16. Bd1 {[%clk 0:02:42.8]} 16...
Nd7 {[%clk 0:02:09.6]} 17. Bc2 {[%clk 0:02:43.1]} 17... g6 {[%clk 0:02:07.1]}
18. Rae1 {[%clk 0:02:37.5]} 18... Bf5 {[%clk 0:02:04.9]} 19. Qd2 {[%clk
0:02:37.4]} 19... Bxc2 {[%clk 0:02:04.6]} 20. Qxc2 {[%clk 0:02:37.8]} 20... Kg7
{[%clk 0:02:02.1]} 21. Bh6+ {[%clk 0:02:37.3]} 21... Kf7 {[%clk 0:02:01.2]} 22.
Bxf8 {[%clk 0:02:39.2]} 22... Qxf8 {[%clk 0:02:00.7]} 23. Qd2 {[%clk 0:02:38.5]}
23... a5 {[%clk 0:01:56]} 24. Nh6+ {[%clk 0:02:35.6]} 24... Kg7 {[%clk
0:01:55.3]} 25. Ng4 {[%clk 0:02:32.3]} 25... h5 {[%clk 0:01:53]} 26. Qh6+ {[%clk
0:02:29.5]} 26... Kf7 {[%clk 0:01:53.3]} 27. Qh7+ {[%clk 0:02:28.3]} 27... Qg7
{[%clk 0:01:54.3]} 28. Nh6+ {[%clk 0:02:27.5]} 28... Kf8 {[%clk 0:01:55.3]} 29.
Qxg7+ {[%clk 0:02:21.8]} 29... Kxg7 {[%clk 0:01:55.7]} 30. Nf5+ {[%clk
0:02:19.3]} 30... gxf5 {[%clk 0:01:56.1]} 31. g3 {[%clk 0:02:19.7]} 31... f4
{[%clk 0:01:53.6]} 32. gxf4 {[%clk 0:02:18.5]} 32... Kg6 {[%clk 0:01:54.7]} 33.
Kg2 {[%clk 0:02:19.2]} 33... Kf5 {[%clk 0:01:55.6]} 34. Kf3 {[%clk 0:02:20.1]}
34... Nb6 {[%clk 0:01:53.8]} 35. b3 {[%clk 0:02:20]} 35... a4 {[%clk 0:01:54]}
36. Rg1 {[%clk 0:02:18]} 36... axb3 {[%clk 0:01:53.5]} 37. axb3 {[%clk 0:02:19]}
37... Ra3 {[%clk 0:01:54.1]} 38. Rb1 {[%clk 0:02:19.8]} 38... Bxf4 {[%clk
0:01:51.7]} 39. Rg7 {[%clk 0:02:19.9]} 39... h4 {[%clk 0:01:44.4]} 40. Rh7
{[%clk 0:02:10.7]} 40... Bd6 {[%clk 0:01:40.4]} 41. Rh5+ {[%clk 0:02:05.3]}
41... Ke6 {[%clk 0:01:36.7]} 42. Rxh4 {[%clk 0:02:05.2]} 42... b4 {[%clk
0:01:37]} 43. cxb4 {[%clk 0:02:04.4]} 43... Nc4 {[%clk 0:01:37.5]} 44. Kg2
{[%clk 0:02:02.2]} 44... Nd2 {[%clk 0:01:34.6]} 45. Re1+ {[%clk 0:02:02.9]}
45... Kf5 {[%clk 0:01:35.1]} 46. Rh5+ {[%clk 0:02:02.2]} 46... Kg6 {[%clk
0:01:35]} 47. Rxd5 {[%clk 0:02:03]} 47... Rxb3 {[%clk 0:01:33.8]} 48. b5 {[%clk
0:02:03.1]} 48... Nf3 {[%clk 0:01:32.1]} 49. Re3 {[%clk 0:02:03]} 49... Nh4+
{[%clk 0:01:31]} 50. Kf1 {[%clk 0:02:02]} 50... Rb1+ {[%clk 0:01:30.7]} 51. Ke2
{[%clk 0:02:02.4]} 51... Rb2+ {[%clk 0:01:29.7]} 52. Ke1 {[%clk 0:02:02.7]}
52... Ng2+ {[%clk 0:01:28.7]} 53. Kd1 {[%clk 0:02:03.1]} 53... Nxe3+ {[%clk
0:01:29.4]} 54. fxe3 {[%clk 0:02:04.2]} 54... Rh2 {[%clk 0:01:28.6]} 55. b6
{[%clk 0:02:05.1]} 55... Rb2 {[%clk 0:01:26.5]} 56. bxc7 {[%clk 0:02:05.3]}
56... Bxc7 {[%clk 0:01:26.9]} 57. h4 {[%clk 0:02:06.3]} 57... f5 {[%clk
0:01:25.3]} 58. Rd7 {[%clk 0:02:04]} 58... Bg3 {[%clk 0:01:24.2]} 59. Kc1 {[%clk
0:02:02.9]} 59... Re2 {[%clk 0:01:21.1]} 60. h5+ {[%clk 0:02:01]} 60... Kxh5
{[%clk 0:01:21.1]} 61. Re7 {[%clk 0:01:53.1]} 61... Kg4 {[%clk 0:01:19.2]} 62.
Kd1 {[%clk 0:01:53.1]} 62... Re1+ {[%clk 0:01:19.5]} 63. Kd2 {[%clk 0:01:53.6]}
63... Kf3 {[%clk 0:01:17.8]} 64. d5 {[%clk 0:01:54.1]} 64... Re2+ {[%clk
0:01:15.5]} 65. Kd3 {[%clk 0:01:54.2]} 65... Bd6 {[%clk 0:01:13.4]} 66. Re6
{[%clk 0:01:54.1]} 66... Bc5 {[%clk 0:01:14.2]} 67. d6 {[%clk 0:01:52.6]} 67...
Rxe3+ {[%clk 0:01:12.4]} 68. Rxe3+ {[%clk 0:01:49]} 68... Bxe3 {[%clk
0:01:12.4]} 69. Kc4 {[%clk 0:01:48.5]} 69... Bg5 {[%clk 0:01:09.6]} 70. Kd5
{[%clk 0:01:48.8]} 70... Ke3 {[%clk 0:01:06.7]} 0-1

[Event "*** Titled Tuesday 3|2 Blitz"]
[Site "Chess.com"]
[Date "2015.09.01"]
[Round "8"]
[White "ItalianMachine"]
[Black "jup1978"]
[Result "0-1"]
[WhiteElo "2196"]
[BlackElo "2169"]
[TimeControl "180+2"]
[EndTime "12:38:34 PDT"]
[Termination "jup1978 won by resignation"]

1. e4 {[%clk 0:02:57.5]} 1... e5 {[%clk 0:02:59.4]} 2. Nf3 {[%clk 0:02:57.2]}
2... Nc6 {[%clk 0:03:00.4]} 3. Bb5 {[%clk 0:02:56.8]} 3... a6 {[%clk 0:03:01]}
4. Ba4 {[%clk 0:02:57]} 4... Nge7 {[%clk 0:03:01.2]} 5. O-O {[%clk 0:02:56.3]}
5... g6 {[%clk 0:03:02.7]} 6. d3 {[%clk 0:02:57.3]} 6... Bg7 {[%clk 0:03:02.8]}
7. Re1 {[%clk 0:02:58.6]} 7... O-O {[%clk 0:03:03.1]} 8. c3 {[%clk 0:02:56.6]}
8... d6 {[%clk 0:03:02.9]} 9. h3 {[%clk 0:02:54.8]} 9... f5 {[%clk 0:02:58.8]}
10. Bb3+ {[%clk 0:02:54.1]} 10... Kh8 {[%clk 0:02:54.2]} 11. Ng5 {[%clk
0:02:54.3]} 11... Qe8 {[%clk 0:02:50.7]} 12. Ne6 {[%clk 0:02:54.6]} 12... Bxe6
{[%clk 0:02:51.3]} 13. Bxe6 {[%clk 0:02:56]} 13... fxe4 {[%clk 0:02:50.6]} 14.
dxe4 {[%clk 0:02:56.5]} 14... Ng8 {[%clk 0:02:51.4]} 15. Bb3 {[%clk 0:02:56.5]}
15... Na5 {[%clk 0:02:46.7]} 16. Bc2 {[%clk 0:02:52.7]} 16... Qf7 {[%clk
0:02:47.7]} 17. Qe2 {[%clk 0:02:53.3]} 17... b5 {[%clk 0:02:44]} 18. b3 {[%clk
0:02:45.9]} 18... Bh6 {[%clk 0:02:43.9]} 19. Bxh6 {[%clk 0:02:39.2]} 19... Nxh6
{[%clk 0:02:45.8]} 20. Nd2 {[%clk 0:02:39.8]} 20... Ng8 {[%clk 0:02:45.5]} 21.
Nf3 {[%clk 0:02:39]} 21... Nf6 {[%clk 0:02:45.8]} 22. Rad1 {[%clk 0:02:35.6]}
22... Nh5 {[%clk 0:02:46.4]} 23. Qe3 {[%clk 0:02:30.9]} 23... Nf4 {[%clk
0:02:46.8]} 24. Nh2 {[%clk 0:02:19.2]} 24... Qe6 {[%clk 0:02:32.8]} 25. Qg3
{[%clk 0:02:00.1]} 25... Rf7 {[%clk 0:02:28.8]} 26. Ng4 {[%clk 0:01:55.5]} 26...
Raf8 {[%clk 0:02:27.2]} 27. f3 {[%clk 0:01:55.1]} 27... h5 {[%clk 0:02:18.1]}
28. Ne3 {[%clk 0:01:55.5]} 28... Kh7 {[%clk 0:02:15.1]} 29. Nd5 {[%clk
0:01:39.1]} 29... Rg7 {[%clk 0:02:08.3]} 30. Nxf4 {[%clk 0:01:33.5]} 30... Rxf4
{[%clk 0:02:10.2]} 31. Qg5 {[%clk 0:01:26.1]} 31... Rgf7 {[%clk 0:02:02]} 32.
Kh2 {[%clk 0:01:23]} 32... Nc6 {[%clk 0:02:00.9]} 33. b4 {[%clk 0:01:16.9]}
33... Qf6 {[%clk 0:01:54.4]} 34. Qg3 {[%clk 0:01:13.4]} 34... Rg7 {[%clk
0:01:48.9]} 35. a4 {[%clk 0:01:08]} 35... Nd8 {[%clk 0:01:46.4]} 36. axb5 {[%clk
0:01:07.2]} 36... axb5 {[%clk 0:01:48.3]} 37. Bb3 {[%clk 0:01:05.8]} 37... Ne6
{[%clk 0:01:42.3]} 38. Rd5 {[%clk 0:01:06.2]} 38... Ng5 {[%clk 0:01:24.4]} 39.
Re3 {[%clk 0:01:02.5]} 39... c6 {[%clk 0:01:19.7]} 40. Rd2 {[%clk 0:00:56.1]}
40... Kh6 {[%clk 0:01:20.8]} 41. Red3 {[%clk 0:00:56]} 41... Rd7 {[%clk
0:01:17.9]} 42. Kg1 {[%clk 0:00:54.2]} 42... h4 {[%clk 0:01:18.5]} 43. Qf2
{[%clk 0:00:53.7]} 43... Nxe4 {[%clk 0:01:17.4]} 44. fxe4 {[%clk 0:00:53.5]}
44... Rxf2 {[%clk 0:01:17.7]} 45. Rxf2 {[%clk 0:00:55.2]} 45... Qg5 {[%clk
0:01:18.5]} 46. Be6 {[%clk 0:00:52]} 46... Ra7 {[%clk 0:01:14.5]} 47. Bg4 {[%clk
0:00:50.1]} 47... Ra1+ {[%clk 0:01:13.9]} 48. Kh2 {[%clk 0:00:48.4]} 48... Qc1
{[%clk 0:01:11.9]} 49. Rd1 {[%clk 0:00:47.3]} 49... Qxc3 {[%clk 0:01:12.7]} 50.
Rxa1 {[%clk 0:00:47.4]} 50... Qxa1 {[%clk 0:01:13.5]} 51. Rd2 {[%clk 0:00:48.3]}
51... Qe1 {[%clk 0:01:03.3]} 52. Rxd6 {[%clk 0:00:48.3]} 52... Qxe4 {[%clk
0:01:00.3]} 53. Rf6 {[%clk 0:00:43.6]} 53... Kg5 {[%clk 0:00:59.1]} 54. Bf3
{[%clk 0:00:41.6]} 54... Qxb4 {[%clk 0:00:53.4]} 55. Rxc6 {[%clk 0:00:42]} 55...
Qf4+ {[%clk 0:00:53.9]} 56. Kg1 {[%clk 0:00:42]} 56... e4 {[%clk 0:00:54]} 57.
Bg4 {[%clk 0:00:40.3]} 57... e3 {[%clk 0:00:52.9]} 58. Rc5+ {[%clk 0:00:39.9]}
58... Kh6 {[%clk 0:00:53.3]} 59. Bf3 {[%clk 0:00:40.6]} 59... e2 {[%clk
0:00:52.5]} 0-1

[Event "*** Titled Tuesday 3|2 Blitz"]
[Site "Chess.com"]
[Date "2015.09.01"]
[Round "8"]
[White "facu57"]
[Black "Mornar1951"]
[Result "0-1"]
[WhiteElo "2482"]
[BlackElo "2505"]
[TimeControl "180+2"]
[EndTime "12:38:42 PDT"]
[Termination "Mornar1951 won by resignation"]

1. e4 {[%clk 0:03:01.9]} 1... c5 {[%clk 0:03:00.5]} 2. Nc3 {[%clk 0:03:01.5]}
2... d6 {[%clk 0:03:01.1]} 3. g3 {[%clk 0:03:02.3]} 3... Nc6 {[%clk 0:03:01.3]}
4. Bg2 {[%clk 0:03:02.6]} 4... g6 {[%clk 0:03:02.9]} 5. f4 {[%clk 0:03:02.4]}
5... Bg7 {[%clk 0:03:03.8]} 6. Nf3 {[%clk 0:03:03.4]} 6... e6 {[%clk 0:03:05]}
7. O-O {[%clk 0:03:03]} 7... Nge7 {[%clk 0:03:06.6]} 8. d3 {[%clk 0:03:03.7]}
8... O-O {[%clk 0:03:07.8]} 9. Be3 {[%clk 0:03:04.1]} 9... b6 {[%clk 0:03:06.5]}
10. Bf2 {[%clk 0:03:01.9]} 10... Ba6 {[%clk 0:03:03.2]} 11. a4 {[%clk 0:02:58]}
11... Rc8 {[%clk 0:03:01.9]} 12. Qd2 {[%clk 0:02:50.3]} 12... Qd7 {[%clk
0:03:01.8]} 13. h4 {[%clk 0:02:49.7]} 13... Nd4 {[%clk 0:02:55.4]} 14. Ne1
{[%clk 0:02:43.7]} 14... e5 {[%clk 0:02:42.3]} 15. fxe5 {[%clk 0:02:37.7]} 15...
dxe5 {[%clk 0:02:38.6]} 16. h5 {[%clk 0:02:38.6]} 16... c4 {[%clk 0:02:27.7]}
17. a5 {[%clk 0:02:20.5]} 17... cxd3 {[%clk 0:01:55.5]} 18. Nxd3 {[%clk
0:02:06.4]} 18... Nxc2 {[%clk 0:01:46.7]} 19. Qxc2 {[%clk 0:02:03.1]} 19... Qxd3
{[%clk 0:01:44.8]} 20. Qxd3 {[%clk 0:02:02.9]} 20... Bxd3 {[%clk 0:01:46.7]} 21.
Rfd1 {[%clk 0:01:59.7]} 21... Bc4 {[%clk 0:01:46.9]} 22. axb6 {[%clk 0:01:58.3]}
22... axb6 {[%clk 0:01:47.4]} 23. Bxb6 {[%clk 0:02:00.2]} 23... Nc6 {[%clk
0:01:34.3]} 24. Nd5 {[%clk 0:01:54.5]} 24... Rb8 {[%clk 0:01:28.1]} 25. Bc5
{[%clk 0:01:52.7]} 25... Rfe8 {[%clk 0:01:23.3]} 26. b4 {[%clk 0:01:47.4]} 26...
Nd4 {[%clk 0:01:16.8]} 27. h6 {[%clk 0:01:40.2]} 27... Bxd5 {[%clk 0:00:48.4]}
28. exd5 {[%clk 0:01:24.4]} 28... Bxh6 {[%clk 0:00:47.3]} 29. d6 {[%clk
0:01:24.3]} 29... Nb3 {[%clk 0:00:37.7]} 30. Ra3 {[%clk 0:00:55.2]} 30... Nd4
{[%clk 0:00:21.8]} 31. Rad3 {[%clk 0:00:55.6]} 31... Red8 {[%clk 0:00:18.7]} 32.
Kh2 {[%clk 0:00:52.1]} 32... Bg7 {[%clk 0:00:09.7]} 33. Bd5 {[%clk 0:00:49.6]}
33... Rd7 {[%clk 0:00:09.6]} 34. Bg2 {[%clk 0:00:48.2]} 34... Rbd8 {[%clk
0:00:09.8]} 35. Kh1 {[%clk 0:00:45]} 35... h5 {[%clk 0:00:08.8]} 36. Bh3 {[%clk
0:00:45.1]} 36... Rxd6 {[%clk 0:00:09.6]} 37. Bxd6 {[%clk 0:00:45.9]} 37... Rxd6
{[%clk 0:00:11.5]} 38. b5 {[%clk 0:00:47.3]} 38... e4 {[%clk 0:00:11.8]} 39.
Rxd4 {[%clk 0:00:42.5]} 39... Rxd4 {[%clk 0:00:11.3]} 40. Rxd4 {[%clk
0:00:42.2]} 40... Bxd4 {[%clk 0:00:13.2]} 41. Bd7 {[%clk 0:00:40.9]} 41... f5
{[%clk 0:00:13.7]} 42. Kg2 {[%clk 0:00:42.3]} 42... Kg7 {[%clk 0:00:14.8]} 43.
Be8 {[%clk 0:00:42.4]} 43... Kf6 {[%clk 0:00:15.8]} 44. Kf1 {[%clk 0:00:43]}
44... Bb6 {[%clk 0:00:17.4]} 45. Ke2 {[%clk 0:00:44.2]} 45... Bc7 {[%clk
0:00:18]} 46. Kf2 {[%clk 0:00:45.1]} 46... Kg5 {[%clk 0:00:19.3]} 47. Kg2 {[%clk
0:00:45.4]} 47... Bb6 {[%clk 0:00:20.3]} 48. Bf7 {[%clk 0:00:45.7]} 48... Kf6
{[%clk 0:00:21.2]} 49. Be8 {[%clk 0:00:47.1]} 49... h4 {[%clk 0:00:19.9]} 50.
gxh4 {[%clk 0:00:47.9]} 50... f4 {[%clk 0:00:21.4]} 51. h5 {[%clk 0:00:48.7]}
51... f3+ {[%clk 0:00:22]} 52. Kg3 {[%clk 0:00:47.7]} 52... g5 {[%clk
0:00:21.2]} 53. h6 {[%clk 0:00:47.2]} 53... g4 {[%clk 0:00:21.5]} 54. h7 {[%clk
0:00:48.8]} 54... Kg7 {[%clk 0:00:22.8]} 55. Bh5 {[%clk 0:00:48.5]} 55... e3
{[%clk 0:00:23.9]} 56. Bxg4 {[%clk 0:00:41.9]} 56... e2 {[%clk 0:00:24.9]} 57.
Bxf3 {[%clk 0:00:43.8]} 57... e1=Q+ {[%clk 0:00:26.2]} 0-1

[Event "*** Titled Tuesday 3|2 Blitz"]
[Site "Chess.com"]
[Date "2015.09.01"]
[Round "8"]
[White "Tomsel"]
[Black "MITerryble"]
[Result "1-0"]
[WhiteElo "2344"]
[BlackElo "2558"]
[TimeControl "180+2"]
[EndTime "12:38:42 PDT"]
[Termination "Tomsel won by checkmate"]

1. d4 {[%clk 0:02:59]} 1... e6 {[%clk 0:03:01]} 2. Bf4 {[%clk 0:02:55.7]} 2...
Nf6 {[%clk 0:03:01.1]} 3. e3 {[%clk 0:02:57]} 3... b6 {[%clk 0:02:54.2]} 4. Nf3
{[%clk 0:02:56.6]} 4... Bb7 {[%clk 0:02:53.4]} 5. Bd3 {[%clk 0:02:54.2]} 5...
Nh5 {[%clk 0:02:53.8]} 6. Bg3 {[%clk 0:02:48.4]} 6... Be7 {[%clk 0:02:52.3]} 7.
a4 {[%clk 0:02:45.3]} 7... a5 {[%clk 0:02:52.4]} 8. Nbd2 {[%clk 0:02:42.8]} 8...
d6 {[%clk 0:02:53.2]} 9. c3 {[%clk 0:02:39.6]} 9... Nd7 {[%clk 0:02:54]} 10. e4
{[%clk 0:02:36.9]} 10... Bf6 {[%clk 0:02:45]} 11. O-O {[%clk 0:02:33.2]} 11...
Nxg3 {[%clk 0:02:44.1]} 12. hxg3 {[%clk 0:02:34]} 12... e5 {[%clk 0:02:43.2]}
13. d5 {[%clk 0:02:32.8]} 13... h5 {[%clk 0:02:42]} 14. Bb5 {[%clk 0:02:27.8]}
14... Bc8 {[%clk 0:02:41.7]} 15. b4 {[%clk 0:02:25.3]} 15... Kf8 {[%clk
0:02:41]} 16. Bc6 {[%clk 0:02:22.8]} 16... Ra7 {[%clk 0:02:41.9]} 17. Nc4 {[%clk
0:02:20]} 17... Nb8 {[%clk 0:02:39.9]} 18. Bb5 {[%clk 0:02:14.8]} 18... h4
{[%clk 0:02:28.7]} 19. gxh4 {[%clk 0:02:10.1]} 19... Bxh4 {[%clk 0:02:29.5]} 20.
Qd2 {[%clk 0:02:09.1]} 20... Qf6 {[%clk 0:02:29.1]} 21. Qe3 {[%clk 0:02:02.2]}
21... Ra8 {[%clk 0:02:16.4]} 22. bxa5 {[%clk 0:01:58.7]} 22... bxa5 {[%clk
0:02:18.3]} 23. g3 {[%clk 0:01:54.9]} 23... g5 {[%clk 0:01:55.2]} 24. Rfb1
{[%clk 0:01:34.8]} 24... Bg4 {[%clk 0:01:23.4]} 25. Ncd2 {[%clk 0:01:28.9]}
25... Nd7 {[%clk 0:01:18.9]} 26. gxh4 {[%clk 0:01:25.3]} 26... gxh4 {[%clk
0:01:16.3]} 27. Nh2 {[%clk 0:01:20.4]} 27... Rg8 {[%clk 0:01:12.8]} 28. Nxg4
{[%clk 0:01:13.7]} 28... Rxg4+ {[%clk 0:01:14.7]} 29. Kh1 {[%clk 0:01:14.1]}
29... Nc5 {[%clk 0:01:14.7]} 30. Rg1 {[%clk 0:01:05.2]} 30... Rf4 {[%clk
0:01:15.6]} 31. f3 {[%clk 0:01:03]} 31... Ke7 {[%clk 0:01:15]} 32. Rg2 {[%clk
0:01:00.7]} 32... h3 {[%clk 0:01:15.2]} 33. Rg3 {[%clk 0:00:58.9]} 33... h2
{[%clk 0:01:12.6]} 34. Qe2 {[%clk 0:00:55.7]} 34... Rh8 {[%clk 0:00:56.9]} 35.
Nc4 {[%clk 0:00:52.9]} 35... Qh4 {[%clk 0:00:49.9]} 36. Qg2 {[%clk 0:00:51.1]}
36... Ra8 {[%clk 0:00:23.3]} 37. Ne3 {[%clk 0:00:48.4]} 37... Rh8 {[%clk
0:00:20.6]} 38. Nf5+ {[%clk 0:00:42.8]} 38... Rxf5 {[%clk 0:00:21.8]} 39. exf5
{[%clk 0:00:44.7]} 39... Qf4 {[%clk 0:00:23.3]} 40. Rh3 {[%clk 0:00:41.2]} 40...
Rxh3 {[%clk 0:00:18.7]} 41. Qxh3 {[%clk 0:00:43.1]} 41... e4 {[%clk 0:00:16.7]}
42. Re1 {[%clk 0:00:40.8]} 42... Qd2 {[%clk 0:00:09]} 43. Qh4+ {[%clk
0:00:38.3]} 43... f6 {[%clk 0:00:09.7]} 44. Qh7+ {[%clk 0:00:36.2]} 44... Kf8
{[%clk 0:00:10.7]} 45. Qh8+ {[%clk 0:00:33.6]} 45... Kf7 {[%clk 0:00:11.9]} 46.
Be8+ {[%clk 0:00:29.5]} 46... Ke7 {[%clk 0:00:12.9]} 47. Rb1 {[%clk 0:00:21.6]}
47... Qd3 {[%clk 0:00:10.8]} 48. Qg7+ {[%clk 0:00:19.2]} 48... Kxe8 {[%clk
0:00:10.6]} 49. Rb8# {[%clk 0:00:20.2]} 1-0